fUSD/lending_fUSD_20250521
["ID","MTS","AMOUNT","RATE_DAILY","PERIOD"]
[361874719,1747860637513,-40.59960138,0.000289,20]
[361874720,1747860637523,-166.56,0.0002899,2]
[361874721,1747860637532,-151.0,0.00029,7]
[361874722,1747860637542,-224.721028,0.00029,7]
[361874723,1747860637551,-151.64,0.00029,2]
[361874724,1747860637574,-300.0,0.00029,2]
[361874725,1747860637584,-663.91142529,0.00029199,5]
[361874726,1747860637594,-538.0,0.0002926,2]
[361874727,1747860637604,-150.0,0.00030048,2]
[361874728,1747860637614,-236.86041256,0.00030049,5]
[361874729,1747860637624,-207.4,0.00030049,5]
[361874730,1747860637635,-215.0738,0.00030049,5]
[361874731,1747860637645,-223.0315306,0.00030049,5]
[361874732,1747860637655,-231.28369723,0.00030049,5]
[361874733,1747860637665,-239.84119403,0.00030049,5]
[361874734,1747860637676,-248.71531821,0.00030049,5]
[361874735,1747860637685,-257.91778498,0.00030049,5]
[361874736,1747860637697,-267.46074303,0.00030049,5]
[361874737,1747860637706,-277.35679052,0.00030049,5]
[361874738,1747860637716,-287.61899177,0.00030049,5]
[361874739,1747860637726,-298.26089446,0.00030049,5]
[361874740,1747860637736,-255.63022877,0.00030049,5]
[361874742,1747860637746,-196.72,0.00030136,2]
[361874743,1747860637756,-1000.0,0.00030151,2]
[361874744,1747860637765,-205.19293254,0.000302,22]
[361874745,1747860637775,-836.79970007,0.00030206,2]
[361874746,1747860637785,-242.37,0.00030314,2]
[361874747,1747860637795,-1200.0,0.00030531,2]
[361874748,1747860637806,-151.0,0.00030582,2]
[361874749,1747860637817,-1232.75714,0.000306,2]
[361874750,1747860637827,-836.79970008,0.00030651,2]
[361874751,1747860637836,-2144.64,0.00030787,2]
[361874752,1747860637846,-2298.46,0.00030841,2]
[361874753,1747860637856,-150.0,0.00031082,7]
[361874754,1747860637866,-9923.47696208,0.0003109,2]
[361874755,1747860637877,-202.0,0.00031093,30]
[361874756,1747860637887,-420.0,0.00031288,2]
[361874757,1747860637898,-156.16,0.00031311,2]
[361874758,1747860637909,-200.0,0.00031325,2]
[361874759,1747860637919,-192.47,0.00031325,2]
[361874760,1747860637929,-233.63,0.00031325,2]
[361874761,1747860637941,-2373.55,0.00031325,120]
[361874762,1747860637951,-200.0,0.000314,2]
[361874763,1747860637961,-200.0,0.000314,2]
[361874764,1747860637971,-176.24702982,0.000314,2]
[361874765,1747860637983,-27631.3771365,0.00031441,2]
[361874766,1747860637994,-154.44,0.00031453,2]
[361874767,1747860638009,-154.44,0.00031453,2]
[361874768,1747860638019,-154.44,0.00031453,2]
[361874769,1747860638029,-154.44,0.00031453,2]
[361874770,1747860638039,-21585.99960179,0.00031463,2]
[361874771,1747860638061,-4987.8873572,0.00031463,2]
[361874773,1747860639696,-414.54,0.00031463,2]
[361874774,1747860639708,-2272.50473708,0.00031463,2]
[361874775,1747860639753,-289.15000193,0.00031463,2]
[361874776,1747860639765,-481.44540421,0.00031463,2]
[361874777,1747860639778,-7909.37370824,0.00031463,2]
[361874778,1747860639925,-1235.5582732,0.00031463,2]
[361874779,1747860639937,-574.51572812,0.00031463,2]
[361874780,1747860639951,-29616.72839816,0.00031463,2]
[361874781,1747860639963,-20166.50972219,0.00031463,2]
[361874784,1747860642870,-6141.53740692,0.00031463,2]
[361874785,1747860642883,-464.504,0.00031463,2]
[361874786,1747860642898,-112123.35804859,0.00031463,2]
[361874787,1747860642924,-5221.2663058,0.00031463,2]
[361874788,1747860642983,-1157.97386792,0.00031463,2]
[361874789,1747860643046,-2998.71961913,0.00031463,2]
[361874819,1747860645535,-730.49864148,0.00031463,2]
[361874823,1747860645590,-9297.77119223,0.00031463,2]
[361874824,1747860645703,-2879.1899961,0.00031463,2]
[361874825,1747860645715,-42522.59730133,0.00031463,2]
[361874826,1747860645727,-2360.60765,0.00031463,2]
[361874827,1747860645739,-1029.4999998,0.00031463,2]
[361874842,1747860657750,250.0,0.00015,2]
[361874843,1747860658843,300.0,0.00017,2]
[361874845,1747860794417,128.45513927,0.00013699,2]
[361874846,1747861063605,-27.75486073,0.00013699,2]
[361874847,1747861063629,-125.89245544,0.00015068,2]
[361874848,1747861065815,-74.10754456,0.00015068,2]
[361874849,1747861065843,-79.16861887,0.00016349,2]
[361874850,1747861068135,-120.83138113,0.00016349,2]
[361874851,1747861068158,-34.78025344,0.00019,2]
[361874852,1747861070706,-177.604046,0.00019,2]
[361874853,1747861073007,-137.61570056,0.00019,2]
[361874854,1747861073035,-27.77600442,0.0002,2]
[361874855,1747861077321,-172.22399558,0.0002,2]
[361874856,1747861077344,-2.44574836,0.000209,2]
[361874857,1747861262793,500.0,0.00029,120]
[361875821,1747861832176,-171.05103058,0.00018739,2]
[361875823,1747861832186,-200.0,0.00018739,2]
[361875825,1747861832196,-140.74710297,0.0001874,2]
[361875827,1747861832208,-359.25289703,0.0001874,2]
[361875829,1747861832218,-30.08710297,0.0001874,2]
[361875832,1747861832237,-321.58797424,0.0001874,2]
[361875834,1747861832247,-200.0,0.0001971,2]
[361875836,1747861832259,-200.0,0.00020613,2]
[361875838,1747861832270,-200.0,0.00020613,2]
[361875840,1747861832279,-200.0,0.00020613,2]
[361875842,1747861832289,-400.0,0.00021,2]
[361875844,1747861832298,-156.21,0.00022505,2]
[361875846,1747861832308,-1796.7612,0.000229,2]
[361875848,1747861832318,-450.0,0.00023,2]
[361875850,1747861832328,-170.44,0.00023926,2]
[361875852,1747861832339,-250.0,0.00024761,2]
[361875854,1747861832350,-225.0,0.00026278,2]
[361875856,1747861832360,-300.0,0.00026599,2]
[361875859,1747861832371,-134.00082576,0.000266,2]
[361875865,1747861832427,-298.34057814,0.000266,2]
[361875867,1747861832439,-1499.21515664,0.000266,2]
[361875870,1747861832450,-24594.48571541,0.000266,2]
[361875872,1747861832460,-205.19293254,0.000269,16]
[361875874,1747861832471,-1541.92,0.00027471,2]
[361875876,1747861832480,-207.4,0.00028225,2]
[361875878,1747861832490,-1681.11,0.00028557,2]
[361875880,1747861832500,-217.32,0.00028718,2]
[361875881,1747861832507,-420.0,0.00028768,2]
[361875883,1747861832516,-150.0,0.00028772,7]
[361875885,1747861832526,-205.19293254,0.00028775,19]
[361875887,1747861832536,-188.79,0.00028787,2]
[361875889,1747861832546,-151.0,0.00028991,2]
[361875891,1747861832555,-533.16461792,0.00028991,2]
[361875893,1747861832565,-208.37073772,0.00028991,2]
[361875895,1747861832574,-1838.76,0.00029008,2]
[361875897,1747861832584,-272.02,0.00029027,2]
[361875899,1747861832594,-500.75,0.00029029,2]
[361875901,1747861832603,-500.0,0.00029068,2]
[361875903,1747861832613,-207.0,0.00029074,2]
[361875904,1747861832623,-315.53,0.00029103,2]
[361875906,1747861832634,-150.0,0.00029138,2]
[361875908,1747861832644,-1000.0,0.00029138,2]
[361875910,1747861832653,-10458.75,0.00029164,120]
[361875912,1747861832663,-166.68,0.00029225,2]
[361875914,1747861832673,-200.0,0.00029306,2]
[361875916,1747861832683,-209.93,0.00029461,2]
[361875918,1747861832693,-327.43,0.00029537,2]
[361875920,1747861832702,-180.81,0.0002954,120]
[361875922,1747861832712,-150.0,0.00029655,2]
[361875924,1747861832722,-1541.92,0.00029735,2]
[361875926,1747861832732,-311.2,0.00029804,2]
[361875928,1747861832742,-250.0,0.00029804,2]
[361875930,1747861832752,-1840.71,0.00030064,2]
[361875932,1747861832762,-476.99,0.00030064,2]
[361875934,1747861832772,-12077.16,0.0003011,2]
[361875981,1747861833237,-1422.9,0.00030197,2]
[361875983,1747861833248,-156.587,0.0003036,2]
[361875985,1747861833261,-1838.76,0.00030459,2]
[361875987,1747861833272,-209.93,0.00030566,2]
[361875989,1747861833282,-207.0,0.0003062,4]
[361875991,1747861833293,-15902.7,0.00030639,2]
[361875994,1747861833304,-205.19293254,0.0003065,23]
[361875995,1747861833314,-400.0,0.000308,11]
[361875997,1747861833324,-900.0,0.000309,11]
[361875999,1747861833334,-23900.0,0.00030966,2]
[361876002,1747861833345,-587.0,0.00031115,2]
[361876004,1747861833356,-2694.02398117,0.0003115,2]
[361876006,1747861833365,-150.0,0.0003116,2]
[361876008,1747861833376,-156.21,0.00031311,2]
[361876010,1747861833386,-21885.04,0.00031325,2]
[361876012,1747861833396,-180.28737555,0.00031336,15]
[361876014,1747861833406,-573.49862947,0.00031347,24]
[361876016,1747861833416,-6307.96,0.00031425,2]
[361876018,1747861833425,-6307.96,0.00031425,2]
[361876020,1747861833436,-2338.42,0.00031426,2]
[361876022,1747861833446,-1538.13,0.00031426,2]
[361876024,1747861833456,-499.99,0.00031426,2]
[361876026,1747861833467,-10062.04,0.00031426,10]
[361876028,1747861833477,-150.99,0.00031426,2]
[361876030,1747861833487,-327.27,0.00031426,2]
[361876032,1747861833497,-150.99,0.00031426,2]
[361876033,1747861833508,-9999.99,0.00031426,2]
[361876034,1747861833518,-500.0,0.00031434,2]
[361876035,1747861833527,-320.12875464,0.00031434,2]
[361876036,1747861833537,-636.6083132,0.00031434,2]
[361876037,1747861833548,-500.0,0.00031434,2]
[361876038,1747861833558,-589.00108347,0.00031434,2]
[361876039,1747861833569,-500.0,0.00031434,2]
[361876040,1747861833579,-500.0,0.00031434,2]
[361876041,1747861833589,-500.0,0.00031434,2]
[361876042,1747861833599,-500.0,0.00031434,2]
[361876043,1747861833609,-500.0,0.00031434,2]
[361876044,1747861833618,-500.0,0.00031434,2]
[361876045,1747861833629,-500.0,0.00031434,2]
[361876046,1747861833638,-500.0,0.00031434,2]
[361876047,1747861833648,-500.0,0.00031434,2]
[361876048,1747861833658,-571.47829392,0.00031435,7]
[361876050,1747861833668,-17535.33859031,0.00031435,7]
[361876052,1747861833683,-135029.77105712,0.00031435,7]
[361876054,1747861833697,-160358.39296726,0.00031435,7]
[361876057,1747861833719,-488.86610413,0.00031435,7]
[361876060,1747861833732,-742.81520405,0.00031435,7]
[361876158,1747861837466,-183.76,0.00028538,2]
[361876159,1747861837477,-3520.81747349,0.00031326,2]
[361876160,1747861837521,-261.92,0.00031326,2]
[361876161,1747861837534,-434.48977145,0.00031326,2]
[361876162,1747861837544,-167.2,0.00031416,2]
[361876163,1747861837555,-167.2,0.00031425,2]
[361876164,1747861837566,-167.2,0.00031425,2]
[361876165,1747861837577,-167.2,0.00031425,2]
[361876166,1747861837587,-167.2,0.00031425,2]
[361876167,1747861837598,-167.2,0.00031425,2]
[361876168,1747861837610,-167.2,0.00031425,2]
[361876169,1747861837620,-9809.31071689,0.00031435,7]
[361876170,1747861837633,-507.64481284,0.00031435,7]
[361876171,1747861837645,-36355.669944,0.00031435,7]
[361876181,1747861837829,-40744.1828,0.00031435,7]
[361876184,1747861837849,-933.74356251,0.00031435,7]
[361876190,1747861837901,-54305.29211787,0.00031435,7]
[361876236,1747861839646,-450.0,0.00031435,7]
[361876237,1747861839703,-2421.67427781,0.00031435,7]
[361876238,1747861839762,-587.55265136,0.00031435,7]
[361876239,1747861839774,-395.00551333,0.00031435,7]
[361876240,1747861839789,-3191.39276772,0.00031435,7]
[361876241,1747861839824,-1269.39615247,0.00031435,7]
[361876242,1747861839886,-2704.5,0.00031435,7]
[361876260,1747861842915,-855.329631,0.00031435,7]
[361876261,1747861842939,-354.5688838,0.00031435,7]
[361876262,1747861842951,-82210.20447899,0.00031435,7]
[361876264,1747861842961,-210322.416711,0.00031435,2]
[361876265,1747861842970,-5842.28935307,0.00031446,2]
[361876266,1747861842980,-180.25787812,0.00031446,2]
[361876267,1747861842990,-1000.0,0.00031455,2]
[361876268,1747861843000,-155.0,0.00031455,2]
[361876269,1747861843010,-2417.011415,0.00031456,2]
[361876271,1747861843021,-705.5467069,0.00031456,2]
[361876272,1747861843032,-562.75267926,0.00031456,2]
[361876273,1747861843043,-46164.59206523,0.00031456,2]
[361876274,1747861843055,-231533.12159537,0.00031456,2]
[361876275,1747861843065,-1873.1568471,0.00031456,2]
[361876278,1747861843075,-4719.065475,0.00031456,2]
[361876280,1747861843084,-24456.608412,0.00031456,2]
[361876282,1747861843094,-200.0,0.00031463,2]
[361876283,1747861843103,-1027.29762,0.00031463,2]
[361876285,1747861843113,-500.78382127,0.00031473,5]
[361876286,1747861843123,-405.0,0.00031478,5]
[361876287,1747861843133,-500.0,0.00031483,5]
[361876288,1747861843143,-1211.43,0.000315,7]
[361876289,1747861843153,-500.0,0.000315,5]
[361876290,1747861843163,-500.0,0.000315,5]
[361876291,1747861843172,-500.0,0.000315,5]
[361876292,1747861843182,-250.86002967,0.00031626,5]
[361876293,1747861843191,-209.93,0.00031671,2]
[361876294,1747861843201,-162.380719,0.00031729,2]
[361876295,1747861843210,-233.0,0.0003176,2]
[361876296,1747861843221,-164.96,0.00031773,2]
[361876297,1747861843230,-200.0,0.00031778,2]
[361876298,1747861843239,-1185.77,0.00031778,2]
[361876299,1747861843250,-200.73,0.00031785,2]
[361876300,1747861843259,-1838.76,0.00031909,2]
[361876301,1747861843270,-1541.92,0.00031999,2]
[361876302,1747861843280,-155.0,0.00032003,2]
[361876303,1747861843290,-1000.0,0.00032031,5]
[361876304,1747861843302,-287.31637834,0.00032048,5]
[361876305,1747861843311,-500.0,0.00032048,5]
[361876306,1747861843320,-200.0,0.00032095,2]
[361876307,1747861843330,-4217.22724488,0.0003212,2]
[361876308,1747861843340,-1000.0,0.00032131,2]
[361876309,1747861843350,-303.92945664,0.00032158,2]
[361876310,1747861843360,-299.88092713,0.00032158,2]
[361876311,1747861843370,-409.26214971,0.00032158,2]
[361876312,1747861843380,-198.36643223,0.00032158,2]
[361876313,1747861843389,-500.0,0.00032158,2]
[361876314,1747861843399,-157.87822939,0.00032158,2]
[361876315,1747861843409,-207.0,0.00032166,7]
[361876316,1747861843418,-180.28737554,0.00032214,15]
[361876317,1747861843427,-200.0,0.00032416,2]
[361876318,1747861843436,-1000.0,0.00032472,2]
[361876319,1747861843447,-205.19293254,0.00032525,27]
[361876321,1747861843619,-1500.0,0.00032579,5]
[361876323,1747861843630,-150.0,0.00032665,2]
[361876325,1747861843640,-233.0,0.0003269,2]
[361876327,1747861843651,-1211.43,0.000327,7]
[361876329,1747861843661,-209.93,0.00032775,2]
[361876330,1747861843672,-1000.0,0.00032781,2]
[361876331,1747861843683,-1268.16,0.00032909,120]
[361876332,1747861843693,-4217.22724488,0.00032915,2]
[361876333,1747861843704,-150.0,0.00032992,2]
[361876334,1747861843715,-193.0,0.00033,14]
[361876335,1747861843727,-180.28737554,0.00033093,15]
[361876336,1747861843738,-168.3888056,0.00033098,2]
[361876337,1747861843749,-532.66865071,0.00033127,5]
[361876338,1747861843758,-3264.722,0.000332,35]
[361876339,1747861843768,-167.114,0.000332,35]
[361876340,1747861843779,-516.35407979,0.0003328,7]
[361876341,1747861843790,-150.71,0.00033332,2]
[361876342,1747861843801,-1838.76,0.00033359,2]
[361876343,1747861843811,-1029.0,0.000334,7]
[361876344,1747861843821,-352.32175301,0.00033596,2]
[361876345,1747861843830,-1000.0,0.000336,7]
[361876346,1747861843839,-233.0,0.0003362,2]
[361876347,1747861843850,-823.0,0.00033652,2]
[361876348,1747861843862,-1362.0,0.000337,7]
[361876349,1747861843871,-207.0,0.00033713,10]
[361876350,1747861843881,-28211.65506217,0.00033765,2]
[361876351,1747861843891,-166.56,0.00033775,2]
[361876352,1747861843901,-162.26,0.00033789,2]
[361876353,1747861843911,-157.03,0.000338,31]
[361876354,1747861843921,-209.93,0.0003388,2]
[361876355,1747861843931,-994.7,0.00033885,120]
[361876356,1747861843942,-180.28737554,0.00033971,15]
[361876357,1747861843952,-1211.43,0.00034,14]
[361876358,1747861843962,-150.0,0.0003417,2]
[361876359,1747861843972,-1541.92,0.00034263,2]
[361876360,1747861843982,-205.19293254,0.000344,30]
[361876361,1747861843992,-213.47460455,0.00034467,2]
[361876362,1747861844002,-237.0,0.000345,2]
[361876363,1747861844014,-193.0,0.00034521,30]
[361876364,1747861844024,-1158.81,0.00034521,2]
[361876365,1747861844034,-1158.81,0.00034521,2]
[361876366,1747861844043,-1158.81,0.00034521,2]
[361876367,1747861844054,-1158.81,0.00034521,2]
[361876368,1747861844064,-150.84,0.00034521,2]
[361876369,1747861844073,-1158.81,0.00034521,2]
[361876370,1747861844083,-421.71,0.00034521,2]
[361876371,1747861844093,-150.0,0.00034521,2]
[361876372,1747861844103,-353.24,0.00034521,2]
[361876373,1747861844113,-162.8,0.00034521,2]
[361876374,1747861844122,-1158.81,0.00034521,2]
[361876375,1747861844132,-150.0,0.00034521,2]
[361876376,1747861844143,-162.8,0.00034521,2]
[361876377,1747861844153,-1158.81,0.00034521,2]
[361876378,1747861844163,-150.0,0.00034521,2]
[361876379,1747861844172,-353.35,0.00034521,2]
[361876380,1747861844182,-162.8,0.00034521,2]
[361876381,1747861844191,-150.0,0.00034521,2]
[361876382,1747861844201,-1158.81,0.00034521,2]
[361876383,1747861844210,-1555.83,0.00034521,2]
[361876384,1747861844220,-150.0,0.00034521,2]
[361876385,1747861844229,-304.9,0.00034521,2]
[361876386,1747861844239,-162.8,0.00034521,2]
[361876387,1747861844249,-233.0,0.0003455,2]
[361876388,1747861844259,-28211.65506217,0.00034568,2]
[361876389,1747861844271,-1838.76,0.0003481,2]
[361876390,1747861844283,-180.28737554,0.0003485,15]
[361876391,1747861844293,-261.117,0.0003487,2]
[361876392,1747861844303,-203.436,0.0003487,2]
[361876393,1747861844312,-935.0,0.0003487,2]
[361876394,1747861844321,-1309.0,0.0003487,2]
[361876395,1747861844331,-631.0,0.0003487,2]
[361876396,1747861844341,-799.0,0.0003487,2]
[361876397,1747861844352,-1460.0,0.0003487,2]
[361876398,1747861844362,-554.0,0.0003487,2]
[361876399,1747861844372,-585.0,0.0003487,2]
[361876400,1747861844381,-259.283,0.0003487,2]
[361876401,1747861844391,-921.0,0.0003487,2]
[361876402,1747861844400,-4047.0,0.0003487,2]
[361876403,1747861844411,-6834.0,0.0003487,2]
[361876404,1747861844421,-154.0,0.0003487,2]
[361876405,1747861844432,-880.0,0.0003487,2]
[361876406,1747861844442,-842.0,0.0003487,2]
[361876407,1747861844453,-805.46,0.00034932,2]
[361876408,1747861844462,-464.23,0.00034932,2]
[361876409,1747861844471,-805.46,0.00034932,2]
[361876410,1747861844481,-805.46,0.00034932,2]
[361876411,1747861844490,-805.46,0.00034932,2]
[361876412,1747861844500,-1205.21,0.00034932,2]
[361876413,1747861844509,-1604.32,0.00034932,2]
[361876414,1747861844518,-150.71,0.00035184,2]
[361876415,1747861844528,-207.0,0.00035259,13]
[361876416,1747861844539,-453.23,0.00035342,2]
[361876417,1747861844551,-453.23,0.00035342,2]
[361876418,1747861844561,-303.08,0.00035342,2]
[361876419,1747861844571,-353.35,0.00035342,2]
[361876420,1747861844581,-453.23,0.00035342,2]
[361876421,1747861844591,-170.1,0.00035342,2]
[361876422,1747861844600,-353.35,0.00035342,2]
[361876423,1747861844609,-453.23,0.00035342,2]
[361876424,1747861844619,-170.1,0.00035342,2]
[361876425,1747861844628,-453.23,0.00035342,2]
[361876426,1747861844638,-885.02,0.00035342,2]
[361876427,1747861844648,-353.35,0.00035342,2]
[361876428,1747861844658,-170.1,0.00035342,2]
[361876429,1747861844667,-170.1,0.00035342,2]
[361876430,1747861844677,-170.1,0.00035342,2]
[361876431,1747861844689,-353.35,0.00035342,2]
[361876432,1747861844701,-170.1,0.00035342,2]
[361876433,1747861844711,-170.1,0.00035342,2]
[361876434,1747861844723,-353.35,0.00035342,2]
[361876435,1747861844735,-170.1,0.00035342,2]
[361876436,1747861844745,-170.1,0.00035342,2]
[361876437,1747861844755,-353.35,0.00035342,2]
[361876438,1747861844766,-170.1,0.00035342,2]
[361876439,1747861844776,-353.35,0.00035342,2]
[361876440,1747861844787,-353.35,0.00035342,2]
[361876441,1747861844797,-353.35,0.00035342,2]
[361876442,1747861844806,-353.35,0.00035342,2]
[361876443,1747861844815,-353.35,0.00035342,2]
[361876444,1747861844826,-353.35,0.00035342,2]
[361876445,1747861844837,-28211.65506217,0.00035372,2]
[361876446,1747861844849,-415.81173317,0.00035386,2]
[361876447,1747861844859,-233.0,0.0003548,2]
[361876448,1747861844869,-1211.43,0.000355,14]
[361876449,1747861844879,-510.88618303,0.000356,2]
[361876450,1747861844888,-500.0,0.00035616,10]
[361876451,1747861844898,-500.0,0.00035616,10]
[361876452,1747861844908,-507.776452,0.00035643,10]
[361876453,1747861844918,-558.30580779,0.00035643,10]
[361876454,1747861844930,-150.0,0.00035675,2]
[361876455,1747861844940,-180.28737554,0.00035728,15]
[361876456,1747861844950,-157.03,0.000358,31]
[361876457,1747861844960,-157.03,0.000358,31]
[361876458,1747861844969,-805.46,0.0003589,2]
[361876459,1747861844981,-269.3,0.0003589,2]
[361876460,1747861844991,-1610.38,0.0003589,2]
[361876461,1747861845002,-530.01,0.0003589,2]
[361876462,1747861845012,-1147.280122,0.00036,37]
[361876463,1747861845022,-150.0,0.00036164,2]
[361876464,1747861845033,-150.34,0.00036164,2]
[361876465,1747861845043,-274.38,0.00036164,2]
[361876466,1747861845053,-28211.65506217,0.00036175,2]
[361876467,1747861845063,-2173.886579,0.00036255,4]
[361876468,1747861845074,-205.19293254,0.00036275,34]
[361876469,1747861845083,-1152.0,0.00036397,2]
[361876470,1747861845093,-996.6,0.000364,2]
[361876471,1747861845102,-766.0,0.000364,2]
[361876472,1747861845112,-233.0,0.0003641,2]
[361876473,1747861845122,-1000.0,0.00036423,2]
[361876474,1747861845132,-1027.29763,0.00036463,2]
[361876475,1747861845142,-500.0,0.00036521,2]
[361876476,1747861845152,-1541.92,0.00036526,2]
[361876477,1747861845162,-180.28737554,0.00036607,15]
[361876478,1747861845172,-206.56446745,0.00036705,2]
[361876479,1747861845183,-199.99999901,0.00036748,3]
[361876480,1747861845193,-207.0,0.00036805,16]
[361876481,1747861845204,-458.25,0.00036849,2]
[361876482,1747861845214,-458.25,0.00036849,2]
[361876483,1747861845224,-458.25,0.00036849,2]
[361876484,1747861845234,-458.25,0.00036849,2]
[361876485,1747861845245,-458.25,0.00036849,2]
[361876486,1747861845255,-458.25,0.00036849,2]
[361876487,1747861845265,-458.25,0.00036849,2]
[361876488,1747861845276,-805.46,0.00036849,2]
[361876489,1747861845285,-458.25,0.00036849,2]
[361876490,1747861845295,-805.46,0.00036849,2]
[361876491,1747861845306,-458.25,0.00036849,2]
[361876492,1747861845315,-805.46,0.00036849,2]
[361876493,1747861845325,-458.25,0.00036849,2]
[361876494,1747861845334,-1683.87,0.00036849,2]
[361876495,1747861845344,-458.25,0.00036849,2]
[361876496,1747861845355,-265.99,0.00036849,2]
[361876497,1747861845366,-200.0,0.000369,19]
[361876498,1747861845377,-1400.0,0.000369,13]
[361876499,1747861845388,-28211.65506217,0.00036978,2]
[361876500,1747861845399,-160.82,0.00036986,2]
[361876501,1747861845409,-2279.64,0.00036986,2]
[361876502,1747861845419,-900.0,0.00037,38]
[361876503,1747861845429,-3334.55433205,0.00037,3]
[361876504,1747861845440,-1265.91,0.00037004,5]
[361876505,1747861845451,-1268.16,0.00037022,120]
[361876506,1747861845461,-150.71,0.00037035,2]
[361876507,1747861845471,-150.0,0.00037062,2]
[361876508,1747861845481,-164.96,0.00037069,2]
[361876509,1747861845492,-171.51384683,0.0003709,2]
[361876510,1747861845501,-1301.75,0.000371,2]
[361876511,1747861845511,-150.052205,0.00037148,120]
[361876512,1747861845521,-150.0,0.0003718,2]
[361876513,1747861845530,-150.0,0.00037198,2]
[361876514,1747861845540,-150.0,0.00037199,2]
[361876515,1747861845551,-150.0,0.00037221,2]
[361876516,1747861845560,-150.0,0.00037243,2]
[361876517,1747861845570,-150.0,0.00037336,2]
[361876518,1747861845579,-210.0,0.0003734,2]
[361876519,1747861845589,-233.0,0.0003734,2]
[361876520,1747861845598,-350.0,0.00037343,30]
[361876521,1747861845608,-241.625,0.00037379,2]
[361876522,1747861845618,-150.0,0.00037379,2]
[361876523,1747861845628,-964.80766009,0.00037455,2]
[361876524,1747861845637,-150.0,0.00037473,2]
[361876525,1747861845647,-215088.64143558,0.00037477,14]
[361876526,1747861845657,-180.28737554,0.00037485,15]
[361876527,1747861845667,-35651.71,0.000375,14]
[361876528,1747861845676,-171.51384681,0.00037504,2]
[361876529,1747861845686,-494.51,0.00037575,7]
[361876530,1747861845696,-500.0,0.00037575,7]
[361876531,1747861845705,-500.0,0.00037575,7]
[361876532,1747861845715,-500.0,0.00037575,7]
[361876533,1747861845725,-500.0,0.00037575,7]
[361876534,1747861845734,-500.0,0.00037575,7]
[361876535,1747861845744,-500.0,0.00037575,7]
[361876536,1747861845753,-569.35,0.00037575,7]
[361876537,1747861845763,-500.0,0.00037575,7]
[361876538,1747861845772,-500.0,0.00037575,7]
[361876539,1747861845782,-500.0,0.00037575,7]
[361876540,1747861845793,-150.0,0.0003761,2]
[361876541,1747861845804,-152.0,0.00037612,3]
[361876542,1747861845814,-500.0,0.00037667,30]
[361876543,1747861845828,-500.0,0.00037667,30]
[361876544,1747861845839,-500.0,0.00037667,30]
[361876545,1747861845848,-1211.43,0.000377,14]
[361876546,1747861845858,-150.0,0.00037747,2]
[361876547,1747861845868,-28211.65506217,0.00037781,2]
[361876548,1747861845877,-157.03,0.000378,31]
[361876549,1747861845887,-157.03,0.000378,31]
[361876550,1747861845899,-1900.0,0.000378,13]
[361876551,1747861845910,-150.0,0.00037808,2]
[361876552,1747861845920,-453.23,0.00037808,2]
[361876554,1747861845929,-1158.37,0.00037808,2]
[361876555,1747861845939,-300.0,0.00037808,2]
[361876556,1747861845949,-150.0,0.00037808,2]
[361876557,1747861845959,-453.23,0.00037808,2]
[361876558,1747861845969,-170.1,0.00037808,2]